bitfinex/quotes_ETHUSD_20260125
["timestamp","ask_amount","ask_price","bid_price","bid_amount"]
[1769363292028,0.001,2892.3,2891.3,4.42097658]
[1769363292414,0.001,2892.3,2891.3,4.34134083]
[1769363293503,4.44520458,2892.3,2891.3,4.34134083]
[1769363293731,4.44420458,2892.1,2891.3,4.77547491]
[1769363294714,4.39678296,2892.3,2891.3,4.77547491]
[1769363297362,5.25984821,2893.3,2891.9,4.33697832]
[1769363297501,4.39578296,2893.3,2891.9,4.33697832]
[1769363297818,4.39578296,2893.1,2892.0,5.13691335]
[1769363302003,0.001,2892.9,2892.0,5.13691335]
[1769363303730,4.39578296,2892.5,2891.6,4.33697832]
[1769363305218,4.39578296,2892.5,2891.4,4.33697832]
[1769363307645,4.39578296,2892.4,2890.9,4.33697832]
[1769363308150,4.39578296,2892.2,2890.9,4.33697832]
[1769363308441,4.83235393,2892.2,2891.0,4.77087615]
[1769363310946,4.39578296,2892.2,2891.0,4.77087615]
[1769363312651,5.26017845,2892.2,2891.0,4.77087615]
[1769363312857,5.2601788,2892.2,2891.0,4.77087615]
[1769363313236,5.2601788,2892.2,2891.0,0.43389783]
[1769363314353,5.2601788,2892.2,2891.2,0.002]
[1769363314555,4.52492033,2892.0,2891.2,0.002]
[1769363316441,4.52492033,2891.8,2891.0,0.002]
[1769363317751,5.3893861,2892.0,2891.1,4.44989782]
[1769363318064,5.38937457,2892.0,2891.1,4.44989782]
[1769363321154,4.52492033,2892.0,2891.1,4.44989782]
[1769363321353,5.38937962,2892.0,2891.1,4.44989782]
[1769363321556,4.52492033,2892.0,2891.1,4.44989782]
[1769363321746,5.13625655,2892.0,2891.1,4.44989782]
[1769363322865,0.61133622,2892.0,2891.1,4.44989782]
[1769363326070,0.001,2891.8,2891.1,4.44989782]
[1769363334976,4.52592033,2891.8,2891.0,0.002]
[1769363336150,0.001,2891.8,2891.0,4.45189782]
[1769363336351,0.001,2891.8,2891.1,4.8950876]
[1769363338154,0.001,2891.6,2891.1,4.8950876]
[1769363340278,0.001,2891.6,2891.1,0.44518978]
[1769363340477,0.001,2891.6,2891.0,0.002]
[1769363342383,4.52592033,2891.6,2891.0,0.002]
[1769363345097,5.39049545,2891.6,2891.0,0.002]
[1769363345301,5.39049545,2891.6,2890.8,0.002]
[1769363345302,4.0732497,2891.5,2890.8,0.002]
[1769363346495,4.0732497,2891.3,2890.8,0.002]
[1769363346693,4.0732497,2891.1,2890.8,0.002]
[1769363347194,4.0732497,2890.9,2889.9,4.07815328]
[1769363347396,4.0732497,2890.9,2889.8,4.08214838]
[1769363347593,3.65975478,2890.3,2889.8,0.002]
[1769363347795,3.65975478,2890.6,2889.6,4.08214838]
[1769363348107,1.49830045,2890.5,2889.6,4.08214838]
[1769363348311,5.29203797,2891.2,2889.8,4.08014838]
[1769363348606,5.43174479,2891.2,2889.8,4.08014838]
[1769363348792,0.725,2891.1,2889.9,4.15978413]
[1769363350813,1.35848225,2891.2,2889.9,4.08014838]
[1769363350814,4.56703797,2891.2,2889.9,4.08014838]
[1769363352407,5.43173131,2891.2,2889.9,4.08014838]
[1769363352609,0.54317313,2891.1,2889.9,4.86210227]
[1769363353896,0.54317313,2891.1,2889.9,4.89670554]
[1769363354096,0.54317313,2891.1,2889.9,4.97634129]
[1769363354424,0.001,2891.4,2890.2,4.08014838]
[1769363354636,0.001,2891.4,2890.4,3.65975478]
[1769363354810,0.001,2891.4,2890.5,4.11474447]
[1769363356202,0.001,2891.4,2890.5,4.19438022]
[1769363356413,0.001,2891.4,2890.5,4.08014838]
[1769363356610,0.001,2891.4,2890.7,3.92580984]
[1769363359625,4.14154904,2891.4,2890.6,0.77399032]
[1769363359832,4.14154904,2891.4,2890.2,3.92580984]
[1769363360626,4.14154904,2891.4,2890.2,4.79079673]
[1769363360930,4.14154904,2891.4,2890.4,3.92580984]
[1769363361834,0.001,2891.4,2890.5,4.00544559]
[1769363365035,0.001,2891.4,2890.5,4.8703291]
[1769363365215,0.001,2891.4,2890.7,3.92580984]
[1769363369837,0.001,2891.4,2890.6,0.85300839]
[1769363370544,0.001,2891.4,2890.6,4.77881823]
[1769363371209,0.001,2891.4,2890.6,3.92580984]
[1769363372928,0.001,2891.2,2890.6,3.92580984]
[1769363374140,0.001,2891.2,2890.6,4.00544559]
[1769363374835,0.001,2891.6,2891.2,3.61054996]
[1769363375039,0.001,2891.8,2891.2,3.61054996]
[1769363375240,0.001,2891.8,2891.4,3.61054996]
[1769363375405,0.001,2891.8,2891.3,0.73506667]
[1769363376007,0.001,2891.8,2890.8,3.74011669]
[1769363376008,3.64504025,2891.8,2890.8,3.61054996]
[1769363377933,3.64504025,2891.8,2890.6,3.61054996]
[1769363380240,4.50955398,2891.8,2890.6,3.61054996]
[1769363380426,3.64504025,2891.8,2890.6,3.61054996]
[1769363381046,4.50956871,2891.8,2890.6,3.61054996]
[1769363381248,3.64404025,2891.6,2890.6,3.97160496]
[1769363384556,3.64404025,2891.6,2890.8,0.002]
[1769363385115,0.45095687,2891.7,2890.8,3.61254996]
[1769363385344,0.001,2891.8,2890.8,3.61254996]
[1769363385716,3.64504025,2891.8,2890.8,3.61254996]
[1769363386131,3.64504025,2891.8,2890.9,3.64514126]
[1769363386669,3.64504025,2891.8,2890.9,3.61054996]
[1769363396766,3.64504025,2891.8,2891.1,0.002]
[1769363396960,0.001,2891.6,2891.1,0.002]
[1769363400270,3.64504025,2891.6,2891.1,0.002]
[1769363402765,0.001,2891.6,2891.1,0.002]
[1769363405940,3.51347779,2891.6,2891.1,0.002]
[1769363408648,4.37708908,2891.5,2890.9,0.002]
[1769363408846,3.51247779,2891.4,2890.9,0.002]
[1769363409254,3.51247779,2891.4,2891.1,0.002]
[1769363409458,3.51247779,2891.4,2890.9,0.002]
[1769363410446,3.51247779,2891.2,2889.7,0.002]
[1769363410653,3.51247779,2890.6,2889.7,0.002]
[1769363412884,3.51247779,2890.6,2889.7,3.76378243]
[1769363414050,4.37735945,2890.6,2889.7,0.002]
[1769363414249,3.51247779,2890.6,2889.7,0.002]
[1769363414878,4.37735016,2890.6,2889.7,0.002]
[1769363415082,3.40695564,2890.4,2889.7,0.002]
[1769363419788,3.40695564,2890.3,2889.7,0.002]
[1769363420662,3.40695564,2890.3,2889.9,0.002]
[1769363420878,3.40695564,2890.3,2889.7,0.002]
[1769363427477,0.725,2890.4,2889.7,0.002]
[1769363427807,0.49357387,2890.3,2889.7,0.002]
[1769363428208,0.49357387,2890.3,2889.7,3.51597572]
[1769363428395,0.725,2890.7,2889.7,3.51597572]
[1769363428600,3.40695564,2890.8,2889.7,3.51597572]
[1769363428802,4.13195564,2890.8,2889.7,3.51597572]
[1769363430014,3.40695564,2890.8,2889.7,3.51597572]
[1769363430189,0.34069556,2890.7,2889.7,3.51597572]
[1769363431618,3.7476512,2890.7,2889.7,3.51597572]
[1769363432619,3.7476512,2890.7,2889.9,0.002]
[1769363432820,0.001,2890.5,2889.9,0.002]
[1769363433817,0.001,2890.5,2889.9,3.36530298]
[1769363434507,0.001,2890.5,2889.9,3.70296892]
[1769363439297,3.38228022,2890.5,2889.9,0.002]
[1769363440401,0.001,2890.5,2889.9,3.36530298]
[1769363444404,0.001,2890.3,2889.9,3.36530298]
[1769363447232,0.001,2890.5,2890.0,3.36330298]
[1769363447436,0.001,2890.5,2889.9,0.002]
[1769363447437,0.001,2890.5,2890.2,3.36330298]
[1769363449334,4.2459008,2891.5,2890.2,3.36330298]
[1769363449634,3.38128022,2891.4,2890.2,3.36330298]
[1769363450441,3.38228022,2891.6,2890.3,3.44293873]
[1769363450748,3.80596334,2891.5,2890.5,3.36330298]
[1769363451314,3.38128022,2891.4,2890.3,3.36330298]
[1769363451546,3.38128022,2891.4,2890.1,0.3365303]
[1769363451715,3.38128022,2891.4,2890.1,3.69983328]
[1769363453131,3.38128022,2891.4,2890.1,1.20155011]
[1769363453336,3.38128022,2891.4,2890.3,3.36330298]
[1769363453666,3.38228022,2891.6,2890.5,3.36330298]
[1769363454725,0.001,2891.6,2890.6,3.36330298]
[1769363455754,0.001,2891.6,2890.6,3.44293873]
[1769363456431,0.001,2891.4,2890.6,3.44293873]
[1769363457143,3.38228022,2891.4,2890.6,3.36330298]
[1769363457339,3.72060824,2891.4,2890.4,4.16238157]
[1769363457660,3.72060824,2891.4,2890.4,3.36530298]
[1769363457815,3.38128022,2891.2,2890.4,0.002]
[1769363459762,3.38128022,2891.1,2890.4,0.002]
[1769363460416,3.38128022,2890.9,2890.4,0.002]
[1769363460618,3.38128022,2890.7,2890.1,0.002]
[1769363461072,3.38128022,2890.6,2890.1,0.002]
[1769363461920,3.38128022,2890.6,2889.9,0.002]
[1769363462121,3.66285979,2890.7,2889.9,0.002]
[1769363462424,7.04414001,2890.7,2889.9,0.002]
[1769363462634,0.7908958,2890.6,2889.9,0.002]
[1769363463037,3.38128022,2890.7,2889.9,0.002]
[1769363464765,3.37137296,2890.6,2889.9,0.002]
[1769363465234,3.37137296,2890.6,2889.7,0.002]
[1769363465622,0.86487665,2890.6,2889.7,0.002]
[1769363465823,3.37137296,2890.5,2889.7,0.002]
[1769363466023,3.37137296,2890.3,2889.7,0.002]
[1769363467458,0.42362496,2890.4,2889.7,3.19987121]
[1769363468326,0.42362496,2890.4,2890.1,0.002]
[1769363470050,3.37137296,2890.3,2889.7,0.002]
[1769363470253,3.37137296,2890.0,2889.6,0.002]
[1769363470430,3.37137296,2890.0,2889.5,0.002]
[1769363471234,3.37137296,2890.0,2889.0,0.002]
[1769363471639,3.37137296,2889.8,2889.0,0.002]
[1769363475869,0.70342328,2889.9,2889.0,3.1685514]
[1769363476072,0.725,2890.1,2889.1,3.1665514]
[1769363479379,3.1960531,2890.2,2889.1,3.1665514]
[1769363480771,3.1960531,2890.2,2889.1,3.15790687]
[1769363481271,3.1960531,2890.2,2889.3,3.1685514]
[1769363481981,3.1960531,2890.2,2889.3,3.66485979]
[1769363482282,0.39210531,2890.1,2889.4,3.1665514]
[1769363482453,4.06101579,2890.3,2889.4,3.1665514]
[1769363482646,3.1960531,2890.3,2889.4,3.1665514]
[1769363483293,3.1960531,2890.2,2889.4,3.1665514]
[1769363487258,3.1960531,2890.1,2889.3,0.002]
[1769363488381,4.06107953,2890.1,2889.3,0.002]
[1769363488599,0.40610795,2890.0,2889.3,0.002]
[1769363488966,0.40610795,2890.0,2889.3,3.1685514]
[1769363489799,4.78601591,2890.3,2889.3,3.1685514]
[1769363489975,4.78602306,2890.3,2889.3,3.1685514]
[1769363490478,3.1960531,2890.2,2889.3,3.1685514]
[1769363492690,4.05239962,2890.2,2889.3,3.1685514]
[1769363493090,0.001,2890.0,2889.3,3.1685514]
[1769363493267,0.40633996,2890.0,2889.3,3.1685514]
[1769363493469,0.001,2890.4,2889.7,3.13328374]
[1769363493681,0.001,2890.4,2889.7,6.79542765]
[1769363493892,0.001,2890.4,2889.8,3.13328374]
[1769363494902,3.24230983,2891.1,2890.1,3.13328374]
[1769363495076,0.32433098,2891.0,2890.1,3.81282651]
[1769363498076,3.24230983,2891.1,2890.1,3.81282651]
[1769363498271,0.001,2891.2,2890.1,3.81282651]
[1769363498467,3.24330983,2891.2,2890.1,3.81282651]
[1769363501702,0.001,2891.2,2890.1,3.81282651]
[1769363503720,0.001,2891.2,2890.4,3.13328374]
[1769363503900,0.001,2891.2,2890.6,3.13328374]
[1769363505076,0.001,2891.0,2890.6,3.13328374]
[1769363506991,0.001,2891.0,2890.3,0.002]
[1769363507684,3.24330983,2891.0,2890.3,0.002]
[1769363510614,3.24230983,2890.9,2890.3,0.002]
[1769363510906,3.24230983,2890.7,2890.3,0.002]
[1769363512005,0.41080734,2890.8,2890.3,0.002]
[1769363513589,0.001,2891.0,2890.3,3.13528374]
[1769363513997,0.001,2891.0,2890.4,3.13328374]
[1769363516918,0.001,2890.8,2890.4,3.13328374]
[1769363521694,0.001,2890.8,2890.3,0.002]
[1769363522094,3.24330983,2890.8,2890.3,0.002]
[1769363522821,0.32433098,2890.7,2890.3,0.002]
[1769363523014,3.24330983,2890.8,2890.3,0.002]
[1769363523214,0.001,2890.8,2890.3,0.002]
[1769363537037,3.26048711,2890.8,2890.3,0.002]
[1769363541320,0.001,2890.6,2890.3,0.002]
[1769363544637,0.001,2890.6,2890.0,3.05397461]
[1769363545846,0.001,2890.6,2890.2,3.14997461]
[1769363546548,0.001,2890.6,2890.0,3.14997461]
[1769363548240,0.001,2890.6,2889.7,3.14997461]
[1769363548421,3.26048711,2890.6,2889.7,3.14997461]
[1769363552539,3.26048711,2890.6,2889.9,0.002]
[1769363552744,0.32604871,2890.5,2889.9,0.002]
[1769363553148,3.69701844,2890.5,2889.9,0.002]
[1769363555132,3.37096973,2890.4,2889.9,0.002]
[1769363555446,3.37096973,2890.4,2889.6,0.002]
[1769363555646,3.37096973,2890.3,2889.6,0.002]
[1769363555852,3.37096973,2890.1,2889.6,0.002]
[1769363560251,0.70354778,2890.2,2889.6,3.22464958]
[1769363560451,0.725,2890.3,2889.6,3.22464958]
[1769363562027,1.58990935,2890.5,2889.6,3.22464958]
[1769363562649,4.96087908,2890.5,2889.6,3.22464958]
[1769363563137,0.725,2890.5,2889.6,3.22464958]
[1769363563653,1.58990282,2890.5,2889.6,3.22464958]
[1769363564243,0.49618726,2890.4,2889.6,3.22464958]
[1769363565059,0.49618726,2890.4,2889.8,0.002]
[1769363565238,0.001,2890.3,2889.8,0.002]
[1769363566554,0.001,2890.3,2889.8,3.22464958]
[1769363568258,0.001,2890.6,2890.1,3.22264958]
[1769363578162,0.001,2890.6,2890.3,0.002]
[1769363578546,0.001,2890.4,2890.3,0.002]
[1769363581770,0.001,2890.8,2890.4,3.22264958]
[1769363589471,0.001,2891.0,2890.4,3.22264958]
[1769363589472,0.001,2891.0,2890.5,3.32883046]
[1769363591383,0.001,2891.0,2890.6,3.33083046]
[1769363601102,0.001,2891.0,2890.6,0.002]
[1769363603202,0.001,2890.8,2890.6,0.002]
[1769363608421,0.001,2891.0,2890.6,3.47509894]
[1769363613297,0.001,2891.0,2890.6,0.3180999]
[1769363615804,0.001,2891.0,2890.8,0.002]
[1769363618524,3.20072134,2890.9,2890.5,0.002]
[1769363618710,3.8870131,2890.8,2890.5,0.002]
[1769363620823,0.68629176,2890.8,2890.5,0.002]
[1769363621022,6.86291762,2891.0,2890.5,0.002]
[1769363622005,3.20172134,2891.0,2890.5,0.002]
[1769363622657,0.001,2891.0,2890.5,3.1718148]
[1769363623722,0.001,2891.0,2890.5,0.002]
[1769363624715,3.20172134,2891.0,2890.5,0.002]
[1769363624920,0.32017213,2890.9,2890.5,0.002]
[1769363625631,3.20172134,2891.0,2890.5,0.002]
[1769363628221,0.001,2891.0,2890.5,0.002]
[1769363628951,0.001,2891.0,2890.5,3.1718148]
[1769363629245,0.725,2891.7,2890.5,3.1718148]
[1769363629246,3.20072134,2891.8,2890.8,3.1698148]
[1769363629438,0.68619176,2891.7,2890.8,3.1698148]
[1769363630847,3.8869131,2891.7,2890.8,3.1698148]
[1769363632271,3.8869131,2891.7,2890.7,0.002]
[1769363632422,3.20072134,2891.5,2890.7,0.002]
[1769363635930,3.20072134,2891.2,2890.7,0.002]
[1769363638454,3.8869131,2891.2,2890.7,0.002]
[1769363638632,3.8869131,2891.2,2890.5,0.002]
[1769363638633,3.20072134,2891.1,2890.5,0.002]
[1769363639851,0.68619176,2891.2,2890.5,3.1718148]
[1769363640937,0.68619176,2891.2,2890.9,0.002]
[1769363641458,3.8869131,2891.2,2890.6,0.002]
[1769363641655,3.95553228,2891.1,2890.6,0.002]
[1769363642246,3.20072134,2890.9,2890.4,0.002]
[1769363643328,3.20072134,2890.9,2890.0,0.002]
[1769363644734,3.20072134,2890.9,2890.0,3.2968644]
[1769363646967,3.25239139,2890.6,2890.0,0.002]
[1769363649282,0.32007213,2890.8,2890.0,3.2968644]
[1769363653051,0.32007213,2890.8,2890.2,0.002]
[1769363653248,3.57246352,2890.8,2890.2,0.002]
[1769363653565,3.25339139,2890.7,2890.2,0.002]
[1769363653760,0.35734635,2890.6,2890.2,0.002]
[1769363653974,3.60973774,2890.6,2890.2,0.002]
[1769363654672,0.35734635,2890.6,2890.2,0.002]
[1769363654852,0.001,2890.7,2890.2,0.002]
[1769363656547,0.001,2890.7,2890.2,3.29919588]
[1769363658961,0.001,2890.7,2890.2,0.002]
[1769363664981,0.001,2890.5,2890.2,0.002]
[1769363666974,0.001,2890.5,2890.2,3.29919588]
[1769363667873,0.001,2890.5,2890.2,0.002]
[1769363670590,3.25453288,2890.4,2890.0,0.002]
[1769363670801,0.32555329,2890.3,2889.6,2.19775862]
[1769363671095,3.25553288,2890.5,2889.6,2.19775862]
[1769363672699,3.66119628,2890.3,2889.5,0.002]
[1769363672863,3.25453288,2889.8,2889.4,0.002]
[1769363673192,3.66119628,2889.9,2889.4,0.002]
[1769363673193,0.69157292,2889.7,2889.4,0.002]
[1769363676069,3.03442736,2889.4,2888.7,0.00100392]
[1769363680004,3.03442736,2889.2,2888.7,0.00100392]
[1769363688034,3.03442736,2889.2,2888.6,0.002]
[1769363688315,3.66624907,2889.3,2888.6,0.002]
[1769363688316,3.03442736,2889.1,2888.6,0.002]
[1769363688514,0.30344274,2889.0,2888.6,0.002]
[1769363689714,6.70067643,2889.3,2888.6,0.002]
[1769363691817,7.56593926,2889.3,2888.6,0.002]
[1769363692118,7.56593926,2889.3,2888.3,3.19804612]
[1769363692718,6.70067643,2889.3,2888.3,3.19804612]
[1769363693088,7.56594563,2889.3,2888.3,3.19804612]
[1769363693288,0.82909456,2889.2,2888.3,3.19804612]
[1769363694134,0.82909456,2889.2,2887.1,3.20069604]
[1769363694135,3.03442736,2888.4,2887.1,3.20069604]
[1769363695123,3.03442736,2888.4,2887.2,3.20069604]
[1769363696702,3.03442736,2888.4,2887.3,3.20069604]
[1769363696883,3.776995,2888.4,2887.5,3.20069604]
[1769363700434,6.70067643,2887.9,2886.8,3.20069604]
[1769363700630,3.03442736,2887.8,2886.8,3.20069604]
[1769363701484,3.66624907,2887.9,2886.4,3.20069604]
[1769363701485,6.70067643,2887.6,2886.4,3.20069604]
[1769363701618,6.70067643,2887.6,2886.2,0.07963575]
[1769363701619,3.704495,2887.5,2886.6,3.198698]
[1769363702650,3.03442736,2887.4,2886.5,0.40668561]
[1769363702813,3.03442736,2887.4,2886.4,3.20069604]
[1769363703521,3.03442736,2887.4,2886.3,0.002]
[1769363704236,3.66624907,2887.3,2886.3,0.002]
[1769363704541,3.05309912,2887.2,2886.3,0.002]
[1769363707034,3.05309912,2887.1,2886.3,0.002]
[1769363707223,7.11124729,2887.0,2886.3,0.002]
[1769363707418,3.05309912,2886.9,2886.3,0.002]
[1769363708230,3.05309912,2887.2,2886.3,3.24651902]
[1769363713358,3.05309912,2887.2,2886.5,0.002]
[1769363713762,0.001,2887.0,2886.5,0.002]
[1769363714055,0.001,2887.0,2886.5,3.24651902]
[1769363714643,0.001,2887.0,2886.5,0.002]
[1769363716558,0.001,2887.0,2886.5,3.29207467]
[1769363716761,3.08572923,2887.6,2886.6,3.29007467]
[1769363716935,0.30857292,2887.5,2886.6,3.29007467]
[1769363717144,3.08572923,2887.9,2886.6,3.29007467]
[1769363718432,3.08572923,2887.6,2886.5,0.002]
[1769363719043,3.08572923,2887.6,2886.5,3.29207467]
[1769363719940,3.08572923,2887.9,2886.7,3.29007467]
[1769363722463,3.08572923,2887.9,2886.7,3.3247163]
[1769363722668,4.83352706,2887.9,2886.9,3.29007467]
[1769363726072,4.83352706,2887.9,2886.9,3.29207467]
[1769363726272,0.001,2887.7,2886.9,3.29207467]
[1769363727842,0.001,2887.7,2887.0,3.29007467]
[1769363728045,10.0,2888.0,2887.2,3.29007467]
[1769363728240,10.0,2888.0,2887.4,3.29007467]
[1769363729042,3.08572923,2887.9,2887.3,0.32900747]
[1769363729240,3.08572923,2887.9,2886.9,3.29207467]
[1769363733375,3.08572923,2887.9,2886.9,0.002]
[1769363733575,3.14320578,2887.6,2886.9,0.002]
[1769363733778,3.14320578,2887.4,2886.9,0.002]
[1769363734353,3.14320578,2887.3,2886.6,0.002]
[1769363734674,3.14320578,2887.1,2886.6,0.002]
[1769363736083,3.14320578,2887.1,2886.5,0.002]
[1769363736965,3.14320578,2886.7,2886.3,0.002]
[1769363737287,3.86920578,2886.7,2886.3,0.002]
[1769363739261,3.86920578,2886.7,2886.5,0.001]
[1769363739482,0.75354549,2886.6,2886.5,1.96e-06]
[1769363739667,0.726,2886.7,2886.5,1.96e-06]
[1769363741183,3.14320578,2886.6,2886.3,0.002]
[1769363741557,0.726,2886.7,2886.3,0.002]
[1769363742690,3.86920578,2886.7,2886.3,0.002]
[1769363744206,3.14320578,2886.7,2886.3,0.002]
[1769363744406,0.31432058,2886.6,2886.3,0.002]
[1769363744612,0.726,2886.7,2886.3,0.002]
[1769363746396,3.86920578,2886.8,2886.3,0.002]
[1769363747097,0.726,2886.8,2886.3,0.002]
[1769363748291,6.81639605,2886.9,2886.3,0.002]
[1769363748598,0.726,2886.8,2886.3,0.002]
[1769363749167,1.11292058,2886.8,2886.3,0.002]
[1769363750594,0.38692058,2886.8,2886.3,0.002]
[1769363750771,0.38692058,2886.8,2886.5,0.002]
[1769363751595,0.727,2886.9,2886.5,0.002]
[1769363751774,0.001,2886.9,2886.5,0.002]
[1769363752584,0.001,2886.9,2886.5,3.18539429]
[1769363754296,3.14320578,2886.8,2885.8,3.18339429]
[1769363754471,0.68173961,2886.7,2885.8,3.18339429]
[1769363761798,3.82494539,2886.7,2885.8,3.18339429]
[1769363761991,3.14320578,2886.6,2885.8,3.18339429]
[1769363762187,3.14320578,2886.6,2885.6,3.18339429]
[1769363762385,3.14320578,2886.6,2885.5,0.002]
[1769363762386,3.14320578,2886.5,2885.5,0.002]
[1769363762710,3.14320578,2885.9,2885.5,0.002]
[1769363763207,3.14320578,2885.9,2885.4,0.002]
[1769363763373,3.14320578,2885.9,2885.1,0.0036]
[1769363763706,3.35320159,2885.6,2884.6,3.28896069]
[1769363764105,3.35320159,2885.5,2884.6,0.002]
[1769363764306,3.35320159,2885.3,2884.6,0.002]
[1769363765019,3.35320159,2885.9,2884.6,3.29096069]
[1769363765394,4.07920159,2886.1,2884.7,3.28896069]
[1769363765774,4.07920159,2886.1,2884.8,3.28896069]
[1769363765775,0.726,2886.1,2884.8,3.28896069]
[1769363765975,1.16591903,2886.1,2885.0,3.28896069]
[1769363767900,0.68163961,2886.4,2885.1,3.36859644]
[1769363768089,0.0018,2886.6,2885.1,3.36859644]
[1769363768500,3.35320159,2886.5,2885.1,3.28896069]
[1769363769908,7.163946,2886.4,2885.1,3.28896069]
[1769363770086,3.35320159,2886.2,2885.1,3.28896069]
[1769363770922,3.35320159,2886.2,2885.2,3.28896069]
[1769363771085,3.35320159,2886.5,2885.4,3.28896069]
[1769363772718,2.499469,2886.4,2885.4,3.28896069]
[1769363772952,0.86787357,2886.6,2885.4,3.28896069]
[1769363772953,3.35320159,2886.3,2885.4,3.28896069]
[1769363773442,3.35500159,2886.6,2885.4,3.28896069]
[1769363773743,0.40367412,2886.5,2885.4,3.74606016]
[1769363774755,3.75687571,2886.5,2885.4,3.74606016]
[1769363775142,3.31777898,2886.3,2885.0,3.22022628]
[1769363775947,3.31777898,2886.3,2884.9,0.002]
[1769363776144,3.31777898,2885.7,2884.9,0.002]
[1769363776518,3.31777898,2885.5,2884.9,0.002]
[1769363776744,3.73619397,2885.4,2884.9,0.002]
[1769363777446,3.73619397,2885.4,2884.6,0.002]
[1769363784245,3.73619397,2885.4,2884.6,3.22222628]
[1769363784448,0.41841499,2885.4,2884.6,3.22222628]
[1769363784620,3.31777898,2885.6,2884.6,3.22222628]
[1769363784825,0.001,2886.1,2884.6,3.22222628]
[1769363785258,0.001,2886.1,2884.7,3.22022628]
[1769363785457,3.31877898,2886.1,2884.7,3.22022628]
[1769363787147,3.31777898,2885.9,2884.7,3.22022628]
[1769363787330,3.31777898,2885.9,2884.8,3.54244891]
[1769363787331,0.41840298,2885.8,2884.8,3.54244891]
[1769363788134,0.41840298,2885.8,2884.8,3.54444891]
[1769363788335,0.001,2885.2,2884.8,3.54444891]
[1769363790970,0.001,2885.2,2884.8,0.002]
[1769363791172,3.31877898,2885.2,2884.8,0.002]
[1769363791535,3.31877898,2885.2,2884.6,0.002]
[1769363794445,0.001,2885.2,2884.6,3.22008675]
[1769363795578,3.196051,2885.2,2884.6,0.002]
[1769363795751,0.001,2885.2,2884.6,0.002]
[1769363796073,0.001,2885.2,2884.6,3.54229543]
[1769363798275,7.076,2886.0,2884.7,3.21808675]
[1769363798457,0.726,2886.0,2884.7,3.21808675]
[1769363798853,3.921051,2886.0,2884.7,3.21808675]
[1769363799159,0.47882932,2885.9,2884.9,3.21808675]
[1769363799569,3.67388032,2885.9,2884.9,3.21808675]
[1769363800778,0.726,2886.0,2884.9,3.21808675]
[1769363801647,0.001,2885.7,2884.9,3.21808675]
[1769363803486,0.001,2885.7,2885.0,3.21808675]
[1769363804175,0.001,2886.1,2885.1,3.21808675]
[1769363804978,3.196051,2886.1,2885.1,3.21808675]
[1769363805183,3.196051,2886.1,2885.2,3.62655002]
[1769363805571,0.001,2886.1,2885.2,3.62655002]
[1769363807180,0.001,2886.1,2885.3,3.21808675]
[1769363808958,3.196051,2886.1,2885.2,0.40846327]
[1769363809186,0.3206051,2886.1,2885.3,3.21808675]
[1769363809494,0.001,2886.1,2885.4,3.21808675]
[1769363812494,0.001,2886.1,2885.2,3.62655002]
[1769363813068,0.001,2886.1,2885.2,4.49303699]
[1769363813399,0.001,2885.9,2885.3,3.21808675]
[1769363813602,0.001,2886.1,2885.6,3.21808675]
[1769363813898,0.001,2886.1,2885.4,3.66739045]
[1769363818394,0.0018,2886.6,2885.5,3.21808675]
[1769363818800,3.196851,2886.6,2885.5,3.21808675]
[1769363824919,3.196851,2886.6,2885.6,3.1186445]
[1769363825126,0.001,2886.4,2885.7,0.31186445]
[1769363826425,0.001,2886.4,2885.8,3.1166445]
[1769363826800,0.001,2886.4,2886.0,3.1166445]
[1769363835030,0.0018,2886.6,2886.1,3.24912898]
[1769363835206,3.22742533,2886.6,2885.8,3.24912898]
[1769363835401,3.22742533,2886.6,2885.9,0.35609934]
[1769363835826,3.22742533,2886.6,2885.7,0.31186445]
[1769363836026,3.22742533,2886.6,2885.6,3.25112898]
[1769363836535,3.22742533,2886.6,2885.6,0.002]
[1769363837125,3.22562533,2886.5,2885.6,0.002]
[1769363837330,3.22562533,2886.5,2885.9,0.002]
[1769363837528,0.001,2886.2,2885.9,0.002]
[1769363839341,3.22662533,2886.2,2885.9,0.002]
[1769363840768,0.0018,2886.6,2886.2,3.24912898]
[1769363840913,0.0018,2886.6,2886.3,0.69219183]
[1769363841111,3.22742533,2886.6,2885.9,0.002]
[1769363849053,0.0018,2886.6,2886.0,3.24912898]
[1769363849255,0.0008,2887.5,2886.6,3.24912898]
[1769363849463,0.001,2887.7,2887.2,3.24912898]
[1769363849658,0.001,2887.7,2887.2,0.33287647]
[1769363849967,3.22562533,2887.3,2886.2,3.24912898]
[1769363850171,3.22562533,2887.6,2886.3,3.32876473]
[1769363850370,0.001,2887.7,2886.6,3.24912898]
[1769363850535,3.22662533,2887.7,2886.6,3.24912898]
[1769363850740,3.54828786,2887.6,2886.3,3.32876473]
[1769363851137,0.32266253,2887.6,2886.3,3.32876473]
[1769363851342,0.001,2887.7,2886.3,3.32876473]
[1769363851753,0.001,2887.7,2886.5,0.07963575]
[1769363851953,0.001,2887.7,2886.6,3.24912898]
[1769363853975,3.24813953,2887.6,2886.1,0.002]
[1769363854277,3.24813953,2887.4,2886.1,0.002]
[1769363855569,3.24813953,2887.3,2886.1,0.002]
[1769363858255,3.24813953,2887.0,2886.1,0.002]
[1769363858761,3.24813953,2886.9,2886.1,0.002]
[1769363860585,0.86601006,2886.9,2886.1,0.002]
[1769363860753,3.24813953,2886.8,2886.1,0.002]
[1769363860952,3.24813953,2886.6,2886.1,0.002]
[1769363861568,3.24813953,2886.6,2886.3,0.002]
[1769363883019,0.41141496,2886.7,2886.3,0.002]
[1769363883327,3.36796619,2886.8,2886.3,0.002]
[1769363884816,3.36796619,2886.8,2886.5,0.001]
[1769363885120,3.36796619,2886.7,2886.3,2.94e-06]
[1769363893237,2.969924,2887.0,2886.3,2.94e-06]
[1769363893409,3.36796619,2886.9,2886.3,2.94e-06]
[1769363893609,0.33679662,2886.8,2886.3,2.94e-06]